Workbook

Sheet a and b
B1: Comparing the Continuous and Discrete
C2: Logistic Growth Models
B4: This DIGMath module you investigate the
C5: differences in the solutions
C6: of the continuous logistic growth model
C9: and the discrete logistic growth model
C11: based on values for a and b.
B15: Enter a value for the initial growth rate a | E15: =F15/100+0.01 -> 0.19 | F15: 18
C16: a is between 0.01 (1%) and 0.50 (50%)
B18: Enter a value for the inhibiting constant b | E18: =F18/50000+0.0001 -> 0.0022 | F18: 104
C19: b is between 0.0001 and 0.005
B21: What is the initial population P0? | E21: =F21+1 -> 45 | F21: 44
B24: Based on either model,
C25: the maximum sustainable population is
D26: L = a/b = | E26: =a/b -> 87
B31: Click each item below for suggestions and investigations
D32: Item 1
D33: Item 2
D34: Item 3
D35: Item 4
A39: To access/download all the DIGMath Apps for Calculus
A40: Click this link: | C40: DIGMath for Calculus
A42: Created by: Sheldon P. Gordon
A43: Farmingdale State College
A44: Development of this module was supported by the
A45: NSF's Division of Undergraduate Education
A46: under grants DUE-0310123 and DUE-0442160.

Sheet Sheet3
B1: Continuous | D1: Discrete | E1: Difference
A2: 0 | B2: =P0 -> 45 | D2: =P0 -> 45 | E2: =B2-D2 -> 0 | F2: 0 | G2: =a/b -> 87.1559633
A3: 1 | B3: =P0*L/(P0+(L-P0)*EXP(-a*A3)) -> 49.11039974 | D3: =(1+a)*D2-b*D2^2 -> 49.1355 | E3: =B3-D3 -> -0.02510025826 | F3: 200 | G3: =a/b -> 87.1559633
A4: 2 | B4: 53.12312284 | D4: 53.20807675 | E4: -0.08495391947
A5: 3 | B5: 56.97273368 | D5: 57.14581458 | E5: -0.1730808974 | F5: =LOOKUP(G5,B2:B102,A2:A102) ->  | G5: =a/b/2 -> 43.57798165
A6: 4 | B6: 60.60453786 | D6: 60.88441516 | E6: -0.2798772965
A7: 5 | B7: 63.97713283 | D7: 64.37138586 | E7: -0.3942530316
A8: 6 | B8: 67.0633638 | D8: 67.56873698 | E8: -0.5053731827
A9: 7 | B9: 69.84982515 | D9: 70.45393241 | E9: -0.6041072638
A10: 8 | B10: 72.33525646 | D10: 73.0191902 | E10: -0.6839337433
A11: 9 | B11: 74.52827112 | D11: 75.26950768 | E11: -0.7412365536
A12: 10 | B12: 76.44483685 | D12: 77.21992678 | E12: -0.7750899322
A13: 11 | B13: 78.1058391 | D13: 78.89255361 | E13: -0.7867145063
A14: 12 | B14: 79.53494395 | D14: 80.31374246 | E14: -0.7787985152
A15: 13 | B15: 80.75686769 | D15: 81.51170557 | E15: -0.754837884
A16: 14 | B16: 81.79607607 | D16: 82.51466487 | E16: -0.7185888009
A17: 15 | B17: 82.67588032 | D17: 83.34955078 | E17: -0.6736704582
A18: 16 | B18: 83.41786804 | D18: 84.04118362 | E18: -0.6233155865
A19: 17 | B19: 84.04159747 | D19: 84.61184172 | E19: -0.5702442564
A20: 18 | B20: 84.56448612 | D20: 85.08111466 | E20: -0.5166285394
A21: 19 | B21: 85.00183423 | D21: 85.46595101 | E21: -0.4641167731
A22: 20 | B22: 85.3669352 | D22: 85.78082695 | E22: -0.4138917531
A23: 21 | B23: 85.67123647 | D23: 86.03798048 | E23: -0.3667440057
A24: 22 | B24: 85.92452486 | D24: 86.24767247 | E24: -0.3231476104
A25: 23 | B25: 86.13511815 | D25: 86.41844924 | E25: -0.2833310935
A26: 24 | B26: 86.31005158 | D26: 86.55739115 | E26: -0.2473395707
A27: 25 | B27: 86.45525204 | D27: 86.67033879 | E27: -0.2150867486
A28: 26 | B28: 86.57569646 | D28: 86.76209334 | E28: -0.1863968798
A29: 27 | B29: 86.67555287 | D29: 86.83659044 | E29: -0.1610375717
A30: 28 | B30: 86.75830421 | D30: 86.89704893 | E30: -0.1387447132
A31: 29 | B31: 86.82685565 | D31: 86.94609652 | E31: -0.1192408683
A32: 30 | B32: 86.88362677 | D32: 86.98587519 | E32: -0.102248417
A33: 31 | B33: 86.93063028 | D33: 87.01812886 | E33: -0.08749857996
A34: 32 | B34: 86.9695387 | D34: 87.04427599 | E34: -0.07473728885
A35: 33 | B35: =P0*L/(P0+(L-P0)*EXP(-a*A35)) -> 87.00174069 | D35: =(1+a)*D34-b*D34^2 -> 87.06546939 | E35: -0.06372869278
A36: 34 | B36: 87.02838845 | D36: 87.08264538 | E36: -0.0542569336
A37: 35 | B37: 87.05043738 | D37: 87.09656407 | E37: -0.04612668526
A38: 36 | B38: 87.06867939 | D38: 87.10784223 | E38: -0.03916283879
A39: 37 | B39: 87.08377056 | D39: 87.11698018 | E39: -0.03320962153
A40: 38 | B40: 87.0962543 | D40: 87.12438366 | E40: -0.02812936511
A41: 39 | B41: 87.10658054 | D41: 87.13038162 | E41: -0.02380107886
A42: 40 | B42: 87.11512177 | D42: 87.13524071 | E42: -0.0201189404
A43: 41 | B43: 87.12218629 | D43: 87.13917707 | E43: -0.01699078142
A44: 42 | B44: 87.12802922 | D44: 87.14236584 | E44: -0.01433662088
A45: 43 | B45: 87.13286168 | D45: 87.14494895 | E45: -0.01208727895
A46: 44 | B46: 87.13685833 | D46: 87.14704142 | E46: -0.01018309134
A47: 45 | B47: 87.14016367 | D47: 87.1487364 | E47: -0.008572733634
A48: 46 | B48: 87.14289724 | D48: 87.1501094 | E48: -0.007212158381
A49: 47 | B49: 87.14515792 | D49: 87.15122157 | E49: -0.006063642994
A50: 48 | B50: 87.1470275 | D50: 87.15212245 | E50: -0.005094943397
A51: 49 | B51: 87.14857363 | D51: 87.15285218 | E51: -0.004278546512
A52: 50 | B52: 87.14985226 | D52: 87.15344327 | E52: -0.00359101367
A53: 51 | B53: 87.15090966 | D53: 87.15392206 | E53: -0.003012406598
A54: 52 | B54: 87.1517841 | D54: 87.15430989 | E54: -0.002525787669
A55: 53 | B55: 87.15250725 | D55: 87.15462403 | E55: -0.002116786366
A56: 54 | B56: 87.15310526 | D56: 87.15487849 | E56: -0.001773224399
A57: 55 | B57: 87.15359981 | D57: 87.1550846 | E57: -0.001484792457
A58: 56 | B58: 87.15400878 | D58: 87.15525155 | E58: -0.001242772189
A59: 57 | B59: 87.15434699 | D59: 87.15538678 | E59: -0.001039797643
A60: 58 | B60: 87.15462667 | D60: 87.15549632 | E60: -0.0008696509782
A61: 59 | B61: 87.15485796 | D61: 87.15558505 | E61: -0.0007270878664
A62: 60 | B62: 87.15504923 | D62: 87.15565692 | E62: -0.0006076885214
A63: 61 | B63: 87.1552074 | D63: 87.15571513 | E63: -0.0005077307946
A64: 62 | B64: 87.1553382 | D64: 87.15576228 | E64: -0.0004240822293
A65: 63 | B65: 87.15544637 | D65: 87.15580048 | E65: -0.0003541083626
A66: 64 | B66: 87.15553582 | D66: 87.15583141 | E66: -0.0002955949276
A67: 65 | B67: =P0*L/(P0+(L-P0)*EXP(-a*A67)) -> 87.15560979 | D67: =(1+a)*D66-b*D66^2 -> 87.15585647 | E67: =B67-D67 -> -0.0002466819238
A68: 66 | B68: 87.15567096 | D68: 87.15587677 | E68: -0.0002058078075
A69: 67 | B69: 87.15572155 | D69: 87.15589321 | E69: -0.000171662294
A70: 68 | B70: 87.15576338 | D70: 87.15590653 | E70: -0.0001431464817
A71: 69 | B71: 87.15579798 | D71: 87.15591732 | E71: -0.0001193391918
A72: 70 | B72: 87.15582658 | D72: 87.15592605 | E72: -9.94685777e-05
A73: 71 | B73: 87.15585024 | D73: 87.15593313 | E73: -8.28881978e-05
A74: 72 | B74: 87.15586981 | D74: 87.15593886 | E74: -6.905686554e-05
A75: 73 | B75: 87.15588599 | D75: 87.15594351 | E75: -5.752169116e-05
A76: 74 | B76: 87.15589936 | D76: 87.15594727 | E76: -4.790381954e-05
A77: 75 | B77: 87.15591043 | D77: 87.15595031 | E77: -3.988644264e-05
A78: 76 | B78: 87.15591958 | D78: 87.15595278 | E78: -3.320472993e-05
A79: 77 | B79: 87.15592714 | D79: 87.15595478 | E79: -2.763737442e-05
A80: 78 | B80: 87.1559334 | D80: 87.1559564 | E80: -2.299949882e-05
A81: 79 | B81: 87.15593858 | D81: 87.15595771 | E81: -1.913670627e-05
A82: 80 | B82: 87.15594285 | D82: 87.15595877 | E82: -1.592009299e-05
A83: 81 | B83: 87.15594639 | D83: 87.15595963 | E83: -1.324206956e-05
A84: 82 | B84: 87.15594932 | D84: 87.15596033 | E84: -1.101286091e-05
A85: 83 | B85: 87.15595174 | D85: 87.1559609 | E85: -9.1575764e-06
A86: 84 | B86: 87.15595374 | D86: 87.15596135 | E86: -7.613757703e-06
A87: 85 | B87: 87.15595539 | D87: 87.15596172 | E87: -6.329327604e-06
A88: 86 | B88: 87.15595676 | D88: 87.15596202 | E88: -5.260874786e-06
A89: 87 | B89: 87.15595789 | D89: 87.15596227 | E89: -4.372219834e-06
A90: 88 | B90: 87.15595883 | D90: 87.15596246 | E90: -3.633217148e-06
A91: 89 | B91: 87.1559596 | D91: 87.15596262 | E91: -3.018753816e-06
A92: 90 | B92: 87.15596024 | D92: 87.15596275 | E92: -2.507913706e-06
A93: 91 | B93: 87.15596077 | D93: 87.15596286 | E93: -2.083279554e-06
A94: 92 | B94: 87.15596121 | D94: 87.15596294 | E94: -1.730350363e-06
A95: 93 | B95: 87.15596157 | D95: 87.15596301 | E95: -1.437055317e-06
A96: 94 | B96: 87.15596187 | D96: 87.15596307 | E96: -1.193348282e-06
A97: 95 | B97: 87.15596212 | D97: 87.15596311 | E97: -9.908697081e-07
A98: 96 | B98: 87.15596232 | D98: 87.15596315 | E98: -8.226645036e-07
A99: 97 | B99: =P0*L/(P0+(L-P0)*EXP(-a*A99)) -> 87.15596249 | D99: =(1+a)*D98-b*D98^2 -> 87.15596318 | E99: -6.829470891e-07
A100: 98 | B100: 87.15596263 | D100: 87.1559632 | E100: -5.669054275e-07
A101: 99 | B101: 87.15596275 | D101: 87.15596322 | E101: -4.705378558e-07
A102: 100 | B102: 87.15596285 | D102: 87.15596324 | E102: -3.905170871e-07
A103: 101 | B103: 87.15596292 | D103: 87.15596325 | E103: -3.240768791e-07
A104: 102 | B104: 87.15596299 | D104: 87.15596326 | E104: -2.689178444e-07
A105: 103 | B105: 87.15596304 | D105: 87.15596327 | E105: -2.231288647e-07
A106: 104 | B106: 87.15596309 | D106: 87.15596327 | E106: -1.851217348e-07
A107: 105 | B107: 87.15596313 | D107: 87.15596328 | E107: -1.53576778e-07
A108: 106 | B108: 87.15596316 | D108: 87.15596328 | E108: -1.273975272e-07
A109: 107 | B109: 87.15596318 | D109: 87.15596329 | E109: -1.056731662e-07
A110: 108 | B110: 87.1559632 | D110: 87.15596329 | E110: -8.76470807e-08
A111: 109 | B111: 87.15596322 | D111: 87.15596329 | E111: -7.26909235e-08
A112: 110 | B112: 87.15596323 | D112: 87.15596329 | E112: -6.028280097e-08
A113: 111 | B113: 87.15596325 | D113: 87.1559633 | E113: -4.998942416e-08
A114: 112 | B114: 87.15596326 | D114: 87.1559633 | E114: -4.145100263e-08
A115: 113 | B115: 87.15596326 | D115: 87.1559633 | E115: -3.436883844e-08
A116: 114 | B116: 87.15596327 | D116: 87.1559633 | E116: -2.849496639e-08
A117: 115 | B117: 87.15596328 | D117: 87.1559633 | E117: -2.362357066e-08
A118: 116 | B118: 87.15596328 | D118: 87.1559633 | E118: -1.958383677e-08
A119: 117 | B119: 87.15596328 | D119: 87.1559633 | E119: -1.623401147e-08
A120: 118 | B120: 87.15596329 | D120: 87.1559633 | E120: -1.345642886e-08
A121: 119 | B121: 87.15596329 | D121: 87.1559633 | E121: -1.11534888e-08
A122: 120 | B122: 87.15596329 | D122: 87.1559633 | E122: -9.244175203e-09
A123: 121 | B123: 87.15596329 | D123: 87.1559633 | E123: -7.661341783e-09
A124: 122 | B124: 87.1559633 | D124: 87.1559633 | E124: -6.349210935e-09
A125: 123 | B125: 87.1559633 | D125: 87.1559633 | E125: -5.261554747e-09
A126: 124 | B126: 87.1559633 | D126: 87.1559633 | E126: -4.360018124e-09
A127: 125 | B127: 87.1559633 | D127: 87.1559633 | E127: -3.612768751e-09
A128: 126 | B128: 87.1559633 | D128: 87.1559633 | E128: -2.993459702e-09
A129: 127 | B129: 87.1559633 | D129: 87.1559633 | E129: -2.480192052e-09
A130: 128 | B130: 87.1559633 | D130: 87.1559633 | E130: -2.05486117e-09
A131: 129 | B131: =P0*L/(P0+(L-P0)*EXP(-a*A131)) -> 87.1559633 | D131: =(1+a)*D130-b*D130^2 -> 87.1559633 | E131: =B131-D131 -> -1.702389341e-09
A132: 130 | B132: 87.1559633 | D132: 87.1559633 | E132: -1.410313644e-09
A133: 131 | B133: 87.1559633 | D133: 87.1559633 | E133: -1.168302788e-09
A134: 132 | B134: 87.1559633 | D134: 87.1559633 | E134: -9.677876278e-10
A135: 133 | B135: 87.1559633 | D135: 87.1559633 | E135: -8.016627362e-10
A136: 134 | B136: 87.1559633 | D136: 87.1559633 | E136: -6.640163974e-10
A137: 135 | B137: 87.1559633 | D137: 87.1559633 | E137: -5.499884992e-10
A138: 136 | B138: 87.1559633 | D138: 87.1559633 | E138: -4.55514737e-10
A139: 137 | B139: 87.1559633 | D139: 87.1559633 | E139: -3.77269771e-10
A140: 138 | B140: 87.1559633 | D140: 87.1559633 | E140: -3.124540626e-10
A141: 139 | B141: 87.1559633 | D141: 87.1559633 | E141: -2.587512427e-10
A142: 140 | B142: 87.1559633 | D142: 87.1559633 | E142: -2.142854783e-10
A143: 141 | B143: 87.1559633 | D143: 87.1559633 | E143: -1.774651537e-10
A144: 142 | B144: 87.1559633 | D144: 87.1559633 | E144: -1.469402378e-10
A145: 143 | B145: 87.1559633 | D145: 87.1559633 | E145: -1.216733381e-10
A146: 144 | B146: 87.1559633 | D146: 87.1559633 | E146: -1.007407491e-10
A147: 145 | B147: 87.1559633 | D147: 87.1559633 | E147: -8.341771718e-11
A148: 146 | B148: 87.1559633 | D148: 87.1559633 | E148: -6.905054306e-11
A149: 147 | B149: 87.1559633 | D149: 87.1559633 | E149: -5.717026852e-11
A150: 148 | B150: 87.1559633 | D150: 87.1559633 | E150: -4.73221462e-11
A151: 149 | B151: 87.1559633 | D151: 87.1559633 | E151: -3.917932645e-11
A152: 150 | B152: 87.1559633 | D152: 87.1559633 | E152: -3.242917046e-11
A153: 151 | B153: 87.1559633 | D153: 87.1559633 | E153: -2.684430456e-11
A154: 152 | B154: 87.1559633 | D154: 87.1559633 | E154: -2.222577677e-11
A155: 153 | B155: 87.1559633 | D155: 87.1559633 | E155: -1.8388846e-11
A156: 154 | B156: 87.1559633 | D156: 87.1559633 | E156: -1.523403625e-11
A157: 155 | B157: 87.1559633 | D157: 87.1559633 | E157: -1.259081728e-11
A158: 156 | B158: 87.1559633 | D158: 87.1559633 | E158: -1.041655651e-11
A159: 157 | B159: 87.1559633 | D159: 87.1559633 | E159: -8.611777957e-12
A160: 158 | B160: 87.1559633 | D160: 87.1559633 | E160: -7.133849067e-12
A161: 159 | B161: 87.1559633 | D161: 87.1559633 | E161: -5.897504707e-12
A162: 160 | B162: 87.1559633 | D162: 87.1559633 | E162: -4.888534022e-12
A163: 161 | B163: =P0*L/(P0+(L-P0)*EXP(-a*A163)) -> 87.1559633 | D163: =(1+a)*D162-b*D162^2 -> 87.1559633 | E163: -4.050093594e-12
A164: 162 | B164: 87.1559633 | D164: 87.1559633 | E164: -3.325340003e-12
A165: 163 | B165: 87.1559633 | D165: 87.1559633 | E165: -2.756905815e-12
A166: 164 | B166: 87.1559633 | D166: 87.1559633 | E166: -2.273736754e-12
A167: 165 | B167: 87.1559633 | D167: 87.1559633 | E167: -1.875832822e-12
A168: 166 | B168: 87.1559633 | D168: 87.1559633 | E168: -1.548983164e-12
A169: 167 | B169: 87.1559633 | D169: 87.1559633 | E169: -1.26476607e-12
A170: 168 | B170: 87.1559633 | D170: 87.1559633 | E170: -1.051603249e-12
A171: 169 | B171: 87.1559633 | D171: 87.1559633 | E171: -8.526512829e-13
A172: 170 | B172: 87.1559633 | D172: 87.1559633 | E172: -7.105427358e-13
A173: 171 | B173: 87.1559633 | D173: 87.1559633 | E173: -5.684341886e-13
A174: 172 | B174: 87.1559633 | D174: 87.1559633 | E174: -4.547473509e-13
A175: 173 | B175: 87.1559633 | D175: 87.1559633 | E175: -3.552713679e-13
A176: 174 | B176: 87.1559633 | D176: 87.1559633 | E176: -2.842170943e-13
A177: 175 | B177: 87.1559633 | D177: 87.1559633 | E177: -2.415845302e-13
A178: 176 | B178: 87.1559633 | D178: 87.1559633 | E178: -1.847411113e-13
A179: 177 | B179: 87.1559633 | D179: 87.1559633 | E179: -1.421085472e-13
A180: 178 | B180: 87.1559633 | D180: 87.1559633 | E180: 0
A181: 179 | B181: 87.1559633 | D181: 87.1559633 | E181: 0
A182: 180 | B182: 87.1559633 | D182: 87.1559633 | E182: 0
A183: 181 | B183: 87.1559633 | D183: 87.1559633 | E183: 0
A184: 182 | B184: 87.1559633 | D184: 87.1559633 | E184: 0
A185: 183 | B185: 87.1559633 | D185: 87.1559633 | E185: 0
A186: 184 | B186: 87.1559633 | D186: 87.1559633 | E186: 0
A187: 185 | B187: 87.1559633 | D187: 87.1559633 | E187: 0
A188: 186 | B188: 87.1559633 | D188: 87.1559633 | E188: 0
A189: 187 | B189: 87.1559633 | D189: 87.1559633 | E189: 0
A190: 188 | B190: 87.1559633 | D190: 87.1559633 | E190: 0
A191: 189 | B191: 87.1559633 | D191: 87.1559633 | E191: 0
A192: 190 | B192: 87.1559633 | D192: 87.1559633 | E192: 0
A193: 191 | B193: 87.1559633 | D193: 87.1559633 | E193: 0
A194: 192 | B194: 87.1559633 | D194: 87.1559633 | E194: 0
A195: 193 | B195: =P0*L/(P0+(L-P0)*EXP(-a*A195)) -> 87.1559633 | D195: =(1+a)*D194-b*D194^2 -> 87.1559633 | E195: =B195-D195 -> 0
A196: 194 | B196: 87.1559633 | D196: 87.1559633 | E196: 0
A197: 195 | B197: 87.1559633 | D197: 87.1559633 | E197: 0
A198: 196 | B198: 87.1559633 | D198: 87.1559633 | E198: 0
A199: 197 | B199: 87.1559633 | D199: 87.1559633 | E199: 0
A200: 198 | B200: 87.1559633 | D200: 87.1559633 | E200: 0
... 1 more rows

Sheet Sheet4
